bitfinex/quotes_ETHUSD_20230830
["timestamp","ask_amount","ask_price","bid_price","bid_amount"]
[1693407051491,6.0,1703.7,1702.5,2.0]
[1693407051823,6.0,1703.5,1702.0,11.76]
[1693407052015,6.0,1703.2,1702.1,2.0]
[1693407052226,6.0,1702.8,1702.0,11.76]
[1693407052389,6.0,1702.8,1701.8,2.0]
[1693407052586,6.0,1702.6,1701.7,0.40672598]
[1693407052802,6.0,1702.2,1701.7,0.40672598]
[1693407052987,6.0,1702.2,1701.7,0.1]
[1693407053484,0.6,1702.2,1701.2,0.1]
[1693407053823,6.0,1701.3,1701.2,0.1]
[1693407054181,6.76849727,1701.3,1701.2,0.1]
[1693407054384,6.0,1701.3,1701.2,0.1]
[1693407054594,6.0,1701.7,1701.2,0.1]
[1693407054803,0.61426877,1702.9,1702.5,6.0]
[1693407054994,5.85665307,1704.7,1702.6,0.6]
[1693407054995,3.0,1703.6,1702.6,0.6]
[1693407055209,3.0,1703.2,1701.7,47.12]
[1693407055387,3.0,1703.2,1701.9,6.0]
[1693407055593,3.0,1703.0,1702.3,3.27795025]
[1693407055993,3.0,1703.0,1702.1,3.27795025]
[1693407056194,3.0,1702.8,1702.2,0.48]
[1693407056406,3.0,1702.8,1701.2,5.96]
[1693407056604,0.61411843,1703.1,1701.2,5.96]
[1693407056605,3.0,1703.0,1702.0,1.64452524]
[1693407056827,1.19617822,1703.1,1702.4,1.64452524]
[1693407056828,0.61411843,1703.1,1702.4,1.64452524]
[1693407057116,0.61411843,1703.1,1702.2,3.64452524]
[1693407057415,13.01,1703.4,1702.5,3.64452524]
[1693407057639,13.01,1703.4,1702.6,0.36445252]
[1693407057783,3.0,1703.6,1702.6,4.00897776]
[1693407057982,0.54667827,1703.3,1703.1,2.0]
[1693407058206,0.54667827,1703.3,1703.2,0.48]
[1693407058458,0.95999999,1703.1,1703.0,3.64452524]
[1693407058641,3.0,1704.6,1703.8,3.64452524]
[1693407058965,13.01,1704.8,1703.5,3.64452524]
[1693407059143,3.0,1704.3,1703.3,1.64452524]
[1693407059316,3.0,1704.4,1703.6,3.64452524]
[1693407059512,10.01,1704.8,1703.6,3.64452524]
[1693407059513,13.01,1704.8,1703.6,3.64452524]
[1693407059766,0.58338995,1704.2,1703.7,0.36445252]
[1693407060040,3.0,1704.6,1703.7,0.36445252]
[1693407060227,3.0,1704.5,1703.7,2.36445252]
[1693407060422,3.0,1704.5,1703.9,3.64452524]
[1693407060622,11.89305979,1704.8,1703.4,3.64452524]
[1693407060623,3.0,1704.2,1703.4,3.64452524]
[1693407060818,11.89305979,1704.8,1703.8,3.64452524]
[1693407060819,3.0,1704.4,1703.8,3.64452524]
[1693407061019,3.0,1704.3,1703.9,0.48]
[1693407061222,0.05853848,1703.2,1702.8,7.86]
[1693407061539,0.05853848,1703.2,1702.9,6.12]
[1693407061882,1.18930598,1704.7,1703.7,2.0]
[1693407061883,3.0,1704.6,1703.7,2.0]
[1693407062141,3.0,1704.0,1703.3,2.0]
[1693407062345,6.58205979,1704.6,1703.6,2.0]
[1693407062543,3.0,1704.3,1703.2,6.12]
[1693407062709,3.0,1704.6,1703.0,8.472]
[1693407062910,3.0,1704.8,1703.9,2.0]
[1693407063143,0.58205979,1705.3,1703.7,2.0]
[1693407063144,3.0,1704.7,1703.7,2.0]
[1693407063311,0.53821669,1704.5,1704.4,2.0]
[1693407063511,3.101,1705.4,1704.4,2.0]
[1693407063512,0.101,1705.4,1704.4,2.0]
[1693407063742,3.101,1705.4,1704.4,2.0]
[1693407063910,0.4111,1705.4,1704.5,0.48]
[1693407064111,0.101,1705.4,1704.5,2.48]
[1693407064311,3.54135963,1705.3,1704.5,2.48]
[1693407064554,0.54135963,1705.3,1704.5,2.48]
[1693407064872,0.54135963,1705.3,1704.7,2.0]
[1693407065007,0.54135963,1705.3,1704.8,0.48]
[1693407065702,0.101,1705.4,1705.0,2.0]
[1693407066032,0.46684379,1705.2,1705.1,3.35348065]
[1693407066166,3.79e-06,1705.2,1705.1,3.88882872]
[1693407066537,0.101,1705.4,1705.3,2.0]
[1693407066667,0.101,1705.4,1705.3,5.35348065]
[1693407066869,0.101,1705.6,1705.3,5.35348065]
[1693407067068,0.101,1705.6,1705.5,2.0]
[1693407067293,3.0,1706.6,1705.7,2.0]
[1693407067504,2.0257475,1706.8,1705.9,4.87348065]
[1693407067829,2.0257475,1706.8,1706.4,2.87348065]
[1693407067984,2.0257475,1706.8,1706.5,2.0]
[1693407068187,2.0257475,1706.8,1706.7,2.0]
[1693407068533,0.0078016,1707.6,1706.7,2.0]
[1693407068534,0.101,1707.2,1706.7,22.31722872]
[1693407068672,0.101,1707.2,1707.0,4.77362826]
[1693407068874,0.101,1707.2,1706.9,11.717]
[1693407069071,0.101,1707.2,1707.0,3.35348065]
[1693407069271,0.101,1707.2,1707.1,20.44712065]
[1693407069479,0.101,1707.2,1707.1,20.92712065]
[1693407069683,0.0078016,1707.6,1707.2,2.0]
[1693407069878,0.0078016,1707.6,1707.3,20.44487065]
[1693407070086,0.0078016,1707.6,1707.4,2.48]
[1693407070302,0.0078016,1707.6,1707.5,11.71302]
[1693407070503,0.0078016,1707.6,1707.5,5.85651]
[1693407070942,0.0078016,1707.6,1707.5,15.06650065]
[1693407071218,0.0078016,1707.6,1707.4,13.71334]
[1693407071219,3.44695525,1707.6,1707.4,5.85657]
[1693407071526,0.0078016,1707.6,1707.4,5.85675]
[1693407071817,3.0,1707.1,1706.8,5.85861]
[1693407072019,0.43892443,1707.5,1706.8,12.303381]
[1693407072020,5.85715,1707.4,1706.8,12.303381]
[1693407072219,6.29554443,1707.5,1706.8,12.303381]
[1693407072417,6.29554443,1707.5,1707.0,11.71604]
[1693407072418,0.43892443,1707.5,1707.0,11.71604]
[1693407072619,6.29551443,1707.5,1707.0,17.57413]
[1693407072785,15.15210443,1707.5,1706.9,5.85846]
[1693407072984,15.15210443,1707.5,1707.0,11.71641]
[1693407072985,3.0,1707.4,1707.0,11.71641]
[1693407073212,6.29546443,1707.5,1707.0,11.71641]
[1693407073424,8.85689,1707.4,1707.0,11.71641]
[1693407073729,0.43892443,1707.5,1707.0,11.71641]
[1693407073883,3.43892443,1707.5,1707.0,11.71641]
[1693407074083,0.43846554,1707.3,1707.0,11.71641]
[1693407074330,0.43846554,1707.3,1707.0,16.54737765]
[1693407074494,0.0078016,1707.6,1707.2,19.57211]
[1693407074697,0.0078016,1707.6,1707.4,11.7137]
[1693407074896,3.0,1707.5,1707.2,5.85728]
[1693407075096,5.8639916,1707.6,1707.2,5.85728]
[1693407075488,0.0078016,1707.6,1707.2,17.57236]
[1693407075887,0.0078016,1707.6,1707.0,2.0]
[1693407075888,3.0,1707.5,1707.1,5.85778]
[1693407076092,8.85655,1707.5,1707.1,5.85778]
[1693407076314,14.7131,1707.5,1707.0,5.8581]
[1693407076510,14.7131,1707.5,1706.8,7.85886]
[1693407076511,3.0,1707.2,1706.7,5.85911]
[1693407076713,11.73114065,1707.2,1706.8,5.85869]
[1693407076919,11.73114065,1707.2,1706.4,5.86009]
[1693407076920,11.71748,1706.9,1706.4,5.86009]
[1693407077235,11.71748,1706.9,1705.9,5.86]
[1693407077236,3.0,1706.3,1705.9,5.86198]
[1693407077532,3.0,1706.3,1705.7,5.86267]
[1693407077533,3.0,1706.0,1705.7,5.86267]
[1693407078039,6.16063,1706.3,1705.7,17.58805]
[1693407078040,3.0,1706.3,1705.7,17.58805]
[1693407078532,8.86027,1706.5,1705.8,2.0]
[1693407078733,14.72044,1706.5,1706.0,11.72326]
[1693407078937,3.0,1706.3,1705.9,5.86166]
[1693407079109,5.86104,1706.2,1705.9,5.86166]
[1693407080203,8.85938,1706.7,1706.0,2.0]
[1693407080412,11.73286065,1706.7,1706.3,5.86053]
[1693407080607,5.87348065,1706.7,1706.3,11.72116]
[1693407080801,5.87348065,1706.7,1706.3,5.86053]
[1693407080802,5.85926,1706.7,1706.3,5.86053]
[1693407081001,17.59200065,1706.7,1706.3,5.86053]
[1693407081295,7.98353,1706.9,1706.3,17.58179]
[1693407081519,2.1249,1706.9,1706.3,19.539969]
[1693407081699,2.87348065,1706.8,1706.3,11.72126]
[1693407081904,5.859,1706.8,1706.3,11.72126]
[1693407082116,7.98351,1706.9,1706.3,17.58189]
[1693407082315,2.1249,1706.9,1706.3,17.58189]
[1693407082516,2.1249,1706.9,1706.4,2.0]
[1693407082710,2.1249,1706.9,1706.5,17.57935]
[1693407082907,5.85808,1707.1,1706.5,17.57935]
[1693407083218,5.85654,1707.5,1706.9,2.0]
[1693407083573,3.0,1707.5,1707.1,17.57355]
[1693407084063,8.85693,1707.4,1707.1,5.85788]
[1693407084418,14.7205216,1707.6,1707.1,17.57356]
[1693407085176,3.0,1707.4,1707.1,11.71568]
[1693407085469,3.0,1707.2,1707.0,11.71605]
[1693407085839,5.85756,1707.2,1706.9,5.85837]
[1693407086022,5.85735,1707.3,1707.0,5.85822]
[1693407086720,3.0,1707.0,1706.7,5.85922]
[1693407086926,8.85836,1707.0,1706.7,5.85907]
[1693407087223,5.85836,1707.0,1706.7,11.71833]
[1693407087528,5.85836,1707.0,1706.6,5.85929]
[1693407087529,3.0,1706.8,1706.6,5.85929]
[1693407087733,3.0,1706.6,1706.4,5.86022]
[1693407087937,5.85954,1706.7,1706.4,5.86022]
[1693407088168,8.85918,1706.8,1706.4,11.72051]
[1693407088736,8.85918,1706.8,1706.4,10.63413781]
[1693407089117,3.0,1706.7,1706.4,10.63413781]
[1693407089321,8.85933,1706.7,1706.4,10.63413781]
[1693407089521,3.0,1706.4,1706.2,5.86087]
[1693407089722,8.85974,1706.6,1706.3,5.86053]
[1693407089962,8.85974,1706.6,1705.3,0.58205979]
[1693407089963,3.0,1706.0,1705.2,0.1]
[1693407090145,3.0,1705.5,1705.2,0.1]
[1693407090347,3.0,1705.5,1705.2,5.96432]
[1693407090566,14.72699,1705.5,1705.2,0.1]
[1693407090763,8.86338,1705.5,1705.2,0.1]
[1693407090922,3.0,1705.3,1705.2,0.1]
[1693407091322,5.87348065,1705.3,1705.2,0.1]
[1693407091639,3.0,1705.0,1704.6,5.96613]
[1693407091837,3.0,1705.0,1704.6,5.9664]
[1693407091838,3.0,1704.8,1704.6,5.9664]
[1693407092462,2.87348065,1704.7,1704.6,0.1]
[1693407092664,11.73226,1704.7,1704.6,0.1]
[1693407092860,8.73961065,1704.7,1704.6,0.1]
[1693407093072,2.87348065,1704.7,1704.6,0.1]
[1693407093286,3.2,1705.1,1704.6,11.83294]
[1693407093587,3.2,1705.1,1704.6,21.47476379]
[1693407093890,0.2,1705.1,1704.9,2.0]
[1693407094054,0.2,1705.1,1705.0,11.7302]
[1693407094868,0.2,1705.1,1705.0,17.5953]
[1693407095688,0.2,1705.1,1705.0,22.94878065]
[1693407095891,0.2,1705.1,1705.0,25.83017671]
[1693407096790,3.0,1705.9,1705.3,2.0]
[1693407096986,5.86187,1706.0,1705.4,17.59035]
[1693407097205,0.37304832,1705.8,1705.4,17.59035]
[1693407097576,5.86138,1706.1,1705.4,20.46383065]
[1693407097813,11.11416,1706.3,1705.6,2.0]
[1693407097987,11.11416,1706.3,1705.8,11.72462]
[1693407098175,16.97499,1706.3,1705.8,11.72462]
[1693407098380,19.84847065,1706.3,1705.8,11.72462]
[1693407098577,11.11416,1706.3,1705.8,11.72462]
[1693407099277,2.2534,1706.3,1705.8,17.58697]
[1693407100091,11.11406,1706.3,1705.8,11.72462]
[1693407100286,16.97472,1706.3,1705.8,11.72462]
[1693407100485,3.0,1706.5,1705.9,2.0]
[1693407100702,3.0,1706.5,1706.2,17.58273]
[1693407101136,5.85828,1707.0,1706.2,22.45621065]
[1693407101282,3.0,1706.9,1706.2,22.45621065]
[1693407101489,3.0,1706.7,1706.2,17.58273]
[1693407101685,8.85941,1706.7,1706.2,17.58276]
[1693407101917,3.0,1706.5,1706.2,11.72183]
[1693407102113,8.86012,1706.5,1706.1,11.72225]
[1693407102284,11.73360065,1706.5,1706.1,5.86132]
[1693407102818,3.0,1706.2,1706.0,5.86148]
[1693407103018,5.87348065,1706.2,1706.0,5.86148]
[1693407103267,3.0,1706.2,1706.0,5.86148]
[1693407103408,3.0,1706.2,1706.0,11.72314]
[1693407103745,5.87348065,1706.2,1706.0,5.86148]
[1693407103910,5.87348065,1706.2,1705.5,2.04638306]
[1693407103911,3.0,1705.6,1705.4,5.86342]
[1693407104243,3.0,1705.6,1705.4,11.72744]
[1693407104627,3.0,1705.8,1705.4,11.72744]
[1693407104806,0.34826251,1705.5,1705.4,11.72744]
[1693407105012,0.34826251,1705.5,1705.4,19.59116]
[1693407105244,3.0,1705.8,1705.4,17.59116]
[1693407105469,8.57899793,1705.9,1705.4,19.350276]
[1693407105640,5.04979034,1706.3,1705.4,19.350276]
[1693407105641,1.49344727,1706.9,1706.7,2.0]
[1693407105815,1.49344727,1706.9,1706.7,5.85907]
[1693407105816,2.12259,1706.9,1706.7,5.85907]
[1693407106013,3.31158203,1706.9,1706.7,5.85926]
[1693407106213,7.1112414,1707.1,1706.7,11.71852]
[1693407106445,6.5137887,1707.1,1706.7,11.71852]
[1693407106847,3.0,1706.8,1706.6,5.85929]
[1693407107012,13.96871584,1707.1,1706.6,5.85929]
[1693407107013,3.0,1706.9,1706.6,5.85929]
[1693407107210,3.0,1706.9,1706.5,5.85978]
[1693407107211,3.0,1706.8,1706.5,5.85978]
[1693407107432,8.60892,1706.8,1706.5,11.71955]
[1693407107633,14.46784,1706.8,1706.4,5.86013]
[1693407108024,8.60892,1706.8,1706.4,11.10937611]
[1693407108238,5.85857,1706.9,1706.4,16.96966611]
[1693407108438,1.2623177,1707.2,1706.7,2.0]
[1693407108748,6.522475,1707.2,1706.8,10.63134206]
[1693407109536,0.664865,1707.2,1706.8,16.49025206]
[1693407109713,1.2623177,1707.2,1706.8,16.49025206]
[1693407109915,2.75,1706.9,1706.8,4.77260206]
[1693407110114,5.85898,1706.8,1706.5,5.85978]
[1693407110526,10.1198577,1707.2,1706.7,11.71816]
[1693407110744,10.1200477,1707.2,1706.7,5.85926]
[1693407110925,1.0182701,1707.1,1706.7,5.85926]
[1693407111286,1.0182701,1707.1,1706.6,5.85959]
[1693407111287,2.75,1706.8,1706.6,5.85959]
[1693407111421,8.60898,1706.8,1706.6,5.85959]
[1693407111738,2.75,1706.8,1706.6,5.85959]
[1693407111922,8.60892,1706.8,1706.6,5.85959]
[1693407112117,6.4561127,1706.9,1706.6,5.85959]
[1693407112329,0.5974527,1707.0,1706.6,17.57879]
[1693407112534,4.01829826,1707.0,1706.6,26.042642]
[1693407112827,9.4557527,1707.0,1706.6,17.57879]
[1693407113177,1.01830259,1706.9,1706.6,5.85959]
[1693407113329,14.86059621,1706.9,1706.6,5.85959]
[1693407113653,0.5974527,1706.9,1706.6,11.71919]
[1693407113836,1.61576949,1706.9,1706.6,11.71919]
[1693407114031,16.21038532,1707.0,1706.6,11.71919]
[1693407114226,1.61575464,1706.9,1706.4,2.0]
[1693407114444,6.4560827,1706.9,1706.6,11.7192]
[1693407114640,5.85863,1706.9,1706.6,11.7192]
[1693407114838,12.3147127,1706.9,1706.6,11.7192]
[1693407115050,8.60905,1706.8,1706.6,5.8596]
[1693407115246,9.2065027,1706.8,1706.5,5.85967]
[1693407115456,2.75,1706.3,1706.0,5.86162]
[1693407115657,8.61083,1706.3,1705.5,9.622456]
[1693407115826,5.862,1705.9,1705.6,5.86289]
[1693407116020,2.75,1705.8,1705.4,5.86357]
[1693407116250,5.86154,1706.1,1705.0,2.0]
[1693407116251,2.75,1705.6,1705.0,2.0]
[1693407116433,0.60081936,1706.1,1704.8,0.25]
[1693407116434,2.75,1705.4,1704.8,8.12]
[1693407116844,2.75,1705.6,1705.0,8.12]
[1693407117056,2.75,1705.6,1705.1,0.812]
[1693407117673,5.62348065,1705.6,1705.0,2.0]
[1693407117852,2.75,1705.4,1705.0,2.0]
[1693407118069,2.75,1705.4,1704.8,2.0]
[1693407118070,5.62348065,1705.4,1704.8,2.0]
[1693407118275,2.87348065,1705.3,1704.8,2.0]
[1693407118485,2.75,1705.2,1704.8,2.0]
[1693407118838,5.62348065,1705.2,1704.8,2.0]
[1693407119084,2.3061,1705.6,1704.8,2.0]
[1693407119424,2.75,1705.2,1704.8,2.0]
[1693407119541,2.3061,1705.6,1704.9,2.87348065]
[1693407119747,0.3699414,1705.5,1704.9,8.12]
[1693407119995,0.3699414,1705.5,1705.2,2.0]
[1693407120291,2.75,1705.4,1704.8,2.0]
[1693407120453,0.3699414,1705.5,1705.0,2.0]
[1693407120645,0.3699414,1705.5,1705.0,8.12]
[1693407120851,0.3699414,1705.5,1705.0,8.932]
[1693407121035,0.3699414,1705.5,1705.2,8.12]
[1693407121243,0.3699414,1705.5,1705.4,2.0]
[1693407121674,2.75,1705.7,1705.2,2.0]
[1693407122012,2.75,1705.4,1704.9,2.0]
[1693407122246,2.87348065,1705.6,1704.7,0.25]
[1693407122247,2.75,1705.1,1704.7,2.0]
[1693407122466,2.75,1705.1,1704.6,0.1]
[1693407122781,2.75,1704.7,1704.6,0.1]
[1693407123002,5.62348065,1704.7,1704.6,0.1]
[1693407123445,0.48,1705.2,1704.6,0.1]
[1693407123446,2.75,1704.9,1704.6,0.1]
[1693407124460,5.62348065,1704.9,1704.6,0.1]
[1693407124863,2.87348065,1704.8,1704.6,0.1]
[1693407125050,2.75,1704.9,1704.6,0.1]
[1693407125465,2.75,1705.4,1704.8,6.12]
[1693407125652,2.75,1705.3,1704.9,2.612]
[1693407125862,2.75,1705.3,1704.9,8.732]
[1693407126084,2.1404,1705.7,1704.9,8.12]
[1693407126085,2.75,1705.5,1704.9,8.12]
[1693407126384,2.1404,1705.7,1705.1,6.12]
[1693407126583,2.75,1706.0,1705.4,2.0]
[1693407126895,5.62348065,1706.0,1705.4,2.0]
[1693407127181,2.75,1705.8,1705.2,2.0]
[1693407127409,2.87348065,1705.9,1705.0,2.0]
[1693407127410,2.75,1705.4,1705.0,2.0]
[1693407127955,2.75,1705.6,1705.0,2.0]
[1693407128166,2.75,1705.6,1705.0,8.12]
[1693407128389,2.75,1705.6,1705.1,0.812]
[1693407128751,3.0,1705.9,1705.0,2.0]
[1693407128752,2.75,1705.4,1705.0,2.0]
[1693407128991,2.87348065,1705.3,1704.7,4.0]
[1693407129185,2.75,1705.0,1704.7,2.0]
[1693407129383,2.75,1705.0,1704.6,0.1]
[1693407129890,2.75,1705.5,1704.9,2.0]
[1693407130054,2.75,1705.5,1704.9,4.87348065]
[1693407130253,2.75,1705.5,1705.0,0.48734807]
[1693407130560,5.62348065,1705.5,1704.9,2.0]
[1693407130763,2.75,1705.3,1704.7,2.0]
[1693407131352,2.75,1705.0,1704.7,2.0]
[1693407131553,5.62348065,1705.0,1704.6,0.1]
[1693407131787,2.75,1704.7,1704.6,0.1]
[1693407132006,8.62348065,1704.7,1704.5,0.1]
[1693407132161,4.3178885,1704.6,1704.5,0.1]
[1693407132487,6.73582871,1704.6,1704.5,0.1]
[1693407132688,2.87348065,1704.6,1704.5,0.1]
[1693407133781,2.75,1704.8,1704.5,2.1]
[1693407134007,2.87348065,1704.7,1704.5,0.1]
[1693407134210,5.62348065,1704.7,1704.5,0.1]
[1693407134612,0.37870582,1704.6,1704.5,0.1]
[1693407135002,2.75,1704.7,1704.5,0.1]
[1693407135683,2.75,1705.0,1704.6,2.0]
[1693407135878,2.75,1704.8,1704.6,2.0]
[1693407136889,5.62348065,1704.8,1704.6,2.0]
[1693407137280,2.75,1704.8,1704.6,2.0]
[1693407137482,5.62348065,1704.8,1704.6,2.0]
[1693407137680,2.75,1704.8,1704.6,2.0]
[1693407138093,2.75,1704.7,1704.5,0.1]
[1693407138476,4.962,1705.1,1704.5,0.1]
[1693407138702,7.83548065,1705.1,1704.6,2.0]
[1693407138901,4.962,1705.1,1704.6,2.0]
[1693407139111,2.75,1704.8,1704.6,2.0]
[1693407140283,2.75,1704.8,1704.5,0.1]
[1693407140615,2.75,1704.6,1704.5,0.1]
[1693407141124,6.53874642,1704.6,1704.5,0.1]
[1693407141724,5.95668663,1704.6,1704.5,0.1]
[1693407142036,5.62348065,1704.6,1704.5,0.1]
[1693407142428,8.62348065,1704.6,1704.5,0.1]
[1693407143093,9.20554044,1704.6,1704.2,0.1]
[1693407143293,2.75,1704.3,1704.2,0.1]
[1693407143498,5.62348065,1704.3,1704.2,0.1]
[1693407144905,2.75,1704.1,1704.0,0.1]
[1693407145230,2.75,1704.1,1703.2,0.1]
[1693407145231,2.75,1703.5,1703.2,0.1]
[1693407145524,2.87348065,1703.4,1703.2,0.1]
[1693407145723,2.75,1703.5,1703.2,0.1]
[1693407146416,2.75,1703.3,1703.2,0.1]
[1693407146628,8.62095,1703.3,1703.2,0.1]
[1693407146847,27.68549065,1703.3,1703.2,0.1]
[1693407147511,17.36538065,1703.3,1703.2,0.1]
[1693407148098,23.23633065,1703.3,1703.2,0.1]
[1693407148323,23.23633065,1703.3,1703.1,0.1]
[1693407148324,26.23633065,1703.3,1703.1,0.1]
[1693407148518,5.87348065,1703.2,1703.1,0.1]
[1693407148718,23.48738065,1703.2,1703.1,0.1]
[1693407148948,23.48738065,1703.2,1702.8,0.1]
[1693407148949,2.75,1702.9,1702.8,0.1]
[1693407149254,29.69486044,1702.9,1702.8,0.1]
[1693407149469,29.11280065,1702.9,1702.8,0.1]
[1693407149628,32.11280065,1702.9,1702.8,0.1]
[1693407149813,32.44407535,1702.9,1702.8,0.1]
[1693407151266,14.82708535,1702.9,1702.8,0.1]
[1693407151582,20.69941535,1702.9,1702.8,0.1]
[1693407151799,26.57174535,1702.9,1702.8,0.1]
[1693407151917,29.57174535,1702.9,1702.7,0.1]
[1693407152125,2.75,1702.5,1702.4,0.1]
[1693407152352,23.24461065,1702.5,1702.4,0.1]
[1693407152549,26.24461065,1702.5,1702.4,0.1]
[1693407153046,0.5836,1703.1,1702.5,2.0]
[1693407153227,0.5985263,1703.7,1702.8,3.0]
[1693407153424,5.87039,1703.5,1702.9,0.3]
[1693407153628,26.48181,1703.5,1702.6,5.87335]
[1693407153892,26.48181,1703.5,1702.4,5.97401]
[1693407154425,3.0,1703.2,1702.4,5.97401]
[1693407154630,17.61636,1703.0,1702.4,5.97401]
[1693407154886,17.61636,1703.0,1702.4,0.1]
[1693407155036,19.377996,1703.0,1702.4,0.1]
[1693407155427,3.0,1702.9,1702.4,0.1]
[1693407155655,17.61855,1702.8,1702.4,0.1]
[1693407155910,11.74674,1702.6,1702.4,0.1]
[1693407156029,17.62011,1702.6,1702.4,0.1]
[1693407156229,18.58031596,1702.6,1702.4,0.1]
[1693407156433,3.0,1702.4,1701.5,5.87712]
[1693407156647,17.62497,1702.2,1701.5,5.87695]
[1693407156863,17.62497,1702.2,1701.4,0.1]
[1693407157035,11.75164,1701.9,1701.4,5.9775]
[1693407157948,11.75164,1701.9,1701.4,0.1]
[1693407158450,3.0,1701.8,1701.4,0.1]
[1693407158661,18.10962,1701.7,1701.4,0.1]
[1693407158975,26.50864,1701.5,1701.4,0.1]
[1693407159204,27.09069979,1701.5,1701.3,0.1]
[1693407159335,15.23502,1701.4,1701.3,0.1]
[1693407159539,16.19522596,1701.4,1701.3,0.1]
[1693407159790,5.87751,1701.4,1701.3,0.1]
[1693407160054,8.87616,1701.8,1701.3,5.97785]
[1693407160199,5.87659,1701.7,1701.3,5.97785]
[1693407160603,6.13476531,1701.6,1701.3,5.97785]
[1693407160801,6.13476531,1701.6,1701.3,0.1]
[1693407161026,13.21272084,1701.6,1701.3,0.1]
[1693407161393,13.21272084,1701.6,1701.2,0.1]
[1693407161394,3.0,1701.4,1701.2,0.1]
[1693407161724,3.0,1701.5,1700.9,0.8026466]
[1693407161725,23.51416,1701.1,1700.9,0.8026466]
[1693407162023,23.99015065,1701.0,1700.9,0.8026466]
[1693407162224,23.51015065,1701.0,1700.9,0.8026466]
[1693407162591,8.75237065,1701.0,1700.9,0.8026466]
[1693407162822,5.87846,1701.2,1700.9,6.6818866]
[1693407162994,5.8779,1701.3,1701.0,0.66818866]
[1693407163190,18.8872,1701.5,1701.1,2.0]
[1693407163191,5.87738,1701.5,1701.1,2.0]
[1693407163482,5.87738,1701.5,1701.1,2.58205979]
[1693407163483,8.75086065,1701.5,1701.1,2.58205979]
[1693407163744,6.13484531,1701.6,1701.3,2.0]
[1693407163745,0.25793531,1701.6,1701.3,2.0]
[1693407163941,3.13141596,1701.6,1701.3,5.87758]
[1693407164247,3.13141596,1701.6,1701.2,5.87813]
[1693407164248,2.87348065,1701.5,1701.2,5.87802]
[1693407164429,6.13475531,1701.6,1701.3,5.8778]
[1693407164430,9.00823596,1701.6,1701.3,5.8778]
[1693407164820,0.24043051,1701.4,1701.3,19.6335]
[1693407165018,0.24043051,1701.4,1701.3,20.21555979]
[1693407165217,5.87565,1702.0,1701.6,11.75336]
[1693407165431,5.87482,1702.2,1701.6,17.63018]
[1693407165632,5.87482,1702.2,1701.8,5.87595]
[1693407165832,5.87482,1702.2,1701.1,2.0]
[1693407165833,11.74984,1702.2,1701.1,2.0]
[1693407166050,20.62486,1702.2,1701.4,5.87734]
[1693407166248,19.98146,1702.2,1701.4,5.87746]
[1693407166541,5.87542,1702.1,1701.6,11.75323]
[1693407166718,5.87542,1702.1,1701.6,17.63005]
[1693407166920,10.01,1702.5,1701.9,2.0]
[1693407167233,10.01,1702.5,1702.0,11.75045]
[1693407167234,5.62423,1702.4,1702.0,11.75045]
[1693407167438,18.75733065,1702.5,1702.0,19.588506]
[1693407167633,8.22965,1702.7,1702.3,2.0]
[1693407167843,11.74559,1702.8,1702.3,19.62305]
[1693407168145,5.87202,1703.0,1702.6,17.61985]
[1693407168350,5.87176,1703.1,1702.6,17.61985]
[1693407168555,11.74357,1703.1,1702.6,19.581835]
[1693407169148,5.87176,1703.1,1702.7,2.0]
[1693407169478,8.87011,1703.6,1703.1,2.0]
[1693407169479,5.87,1703.6,1703.1,2.0]
[1693407169747,5.86824,1704.1,1703.5,19.61006]
[1693407169953,5.86855,1704.0,1703.5,19.61006]
[1693407170242,5.86824,1704.1,1703.5,19.61006]
[1693407170243,5.86826,1704.1,1703.5,19.61006]
[1693407170639,11.7367,1704.1,1703.5,11.74004]
[1693407170844,5.96909,1704.2,1703.6,2.0]
[1693407171046,0.101,1704.2,1703.7,19.60806]
[1693407171229,0.101,1704.2,1703.7,22.515626]
[1693407171551,5.96891,1704.2,1703.7,22.515626]
[1693407171853,5.96891,1704.2,1703.9,2.0]
[1693407171854,0.101,1704.2,1703.9,2.0]
[1693407172054,0.101,1704.2,1704.0,5.86854]
[1693407172231,0.101,1704.2,1704.0,13.110797]
[1693407172433,0.101,1704.2,1704.0,18.979337]
[1693407172863,5.96888,1704.2,1703.8,5.8689]
[1693407173153,5.96888,1704.2,1703.7,5.86953]
[1693407173154,5.86866,1704.0,1703.7,5.86953]
[1693407173453,5.86866,1704.0,1703.7,4.7815269]
[1693407173759,11.73732,1704.0,1703.5,5.87023]
[1693407174053,11.73732,1704.0,1703.5,13.74029]
[1693407174355,11.73732,1704.0,1703.5,5.87006]
[1693407174516,11.73732,1704.0,1703.2,5.87116]
[1693407174517,0.58205979,1703.9,1703.2,5.87116]
[1693407174720,19.36654,1704.0,1703.2,5.87116]
[1693407174721,2.87348065,1703.8,1703.3,5.87082]
[1693407174917,11.73918,1703.7,1703.2,5.87116]
[1693407175151,14.61266065,1703.7,1703.2,11.74246]
[1693407175354,11.73918,1703.7,1703.2,5.87116]
[1693407175517,20.48227065,1703.7,1703.2,7.87116]